fUSD/lending_fUSD_20250818
["ID","MTS","AMOUNT","RATE_DAILY","PERIOD"]
[380017401,1755475870974,-500.0,0.00013699,2]
[380017402,1755475870984,-215.28534314,0.00013699,2]
[380017403,1755475870998,-500.0,0.00013699,2]
[380017404,1755475871009,-666.0,0.00013699,2]
[380017405,1755475871022,-666.0,0.00013699,2]
[380017406,1755475871032,-151.0,0.00013699,2]
[380017407,1755475871043,-151.0,0.00013699,2]
[380017408,1755475871056,-151.0,0.00013699,2]
[380017409,1755475871069,-243.655123,0.00013699,2]
[380017410,1755475871078,-151.0,0.00013699,2]
[380017411,1755475871088,-202.892164,0.00013699,2]
[380017412,1755475871099,-243.655123,0.00013699,2]
[380017413,1755475871110,-202.892164,0.00013699,2]
[380017414,1755475871123,-151.0,0.00013699,2]
[380017415,1755475871133,-1000.0,0.000137,2]
[380017416,1755475871145,-3895.52216477,0.000137,2]
[380017417,1755475871157,-3895.52216477,0.000137,2]
[380017418,1755475871166,-3895.52216477,0.000137,2]
[380017419,1755475871176,-3895.52216477,0.000137,2]
[380017420,1755475871186,-3895.52216477,0.000137,2]
[380017421,1755475871197,-3895.52216477,0.000137,2]
[380017422,1755475871208,-3895.52216477,0.000137,2]
[380017423,1755475871219,-3895.52216477,0.000137,2]
[380017424,1755475871234,-3895.52216477,0.000137,2]
[380017425,1755475871246,-3895.52216477,0.000137,2]
[380017426,1755475871257,-3895.52216477,0.000137,2]
[380017427,1755475871267,-3895.52216477,0.000137,2]
[380017428,1755475871278,-3895.52216477,0.000137,2]
[380017429,1755475871288,-3895.52216477,0.000137,2]
[380017430,1755475871301,-3895.52216477,0.000137,2]
[380017431,1755475871312,-3895.52216477,0.000137,2]
[380017432,1755475871323,-3895.52216477,0.000137,2]
[380017433,1755475871333,-3895.52216477,0.000137,2]
[380017434,1755475871342,-3895.52216477,0.000137,2]
[380017435,1755475871353,-3895.52,0.000137,2]
[380017436,1755475871363,-9089.5517178,0.000137,2]
[380017437,1755475871373,-9089.5517178,0.000137,2]
[380017438,1755475871383,-9089.5517178,0.000137,2]
[380017439,1755475871394,-9089.5517178,0.000137,2]
[380017440,1755475871404,-9089.5517178,0.000137,2]
[380017441,1755475871414,-9089.5517178,0.000137,2]
[380017442,1755475871425,-9089.5517178,0.000137,2]
[380017443,1755475871436,-9089.5517178,0.000137,2]
[380017444,1755475871446,-9089.5517178,0.000137,2]
[380017445,1755475871457,-9089.5517178,0.000137,2]
[380017446,1755475871467,-9089.5517178,0.000137,2]
[380017447,1755475871476,-9089.5517178,0.000137,2]
[380017448,1755475871486,-9089.5517178,0.000137,2]
[380017449,1755475871497,-9089.5517178,0.000137,2]
[380017450,1755475871508,-9089.5517178,0.000137,2]
[380017451,1755475871518,-9089.5517178,0.000137,2]
[380017452,1755475871529,-9089.5517178,0.000137,2]
[380017453,1755475871543,-9089.5517178,0.000137,2]
[380017454,1755475871553,-9089.5517178,0.000137,2]
[380017455,1755475871564,-9089.55,0.000137,2]
[380017456,1755475871574,-2056.41191404,0.000137,2]
[380017457,1755475871587,-2056.41191404,0.000137,2]
[380017458,1755475871597,-2056.41191404,0.000137,2]
[380017459,1755475871607,-2056.41191404,0.000137,2]
[380017460,1755475871617,-2056.41191404,0.000137,2]
[380017461,1755475871628,-2056.41191404,0.000137,2]
[380017462,1755475871638,-2056.41191404,0.000137,2]
[380017463,1755475871648,-2056.41191404,0.000137,2]
[380017464,1755475871658,-2056.41191404,0.000137,2]
[380017465,1755475871668,-2056.41191404,0.000137,2]
[380017466,1755475871679,-2056.41191404,0.000137,2]
[380017467,1755475871688,-2056.41191404,0.000137,2]
[380017468,1755475871698,-2056.41191404,0.000137,2]
[380017469,1755475871708,-2056.41191404,0.000137,2]
[380017470,1755475871718,-2056.41191404,0.000137,2]
[380017471,1755475871728,-2056.41191404,0.000137,2]
[380017472,1755475871737,-2056.41191404,0.000137,2]
[380017473,1755475871747,-2056.41191404,0.000137,2]
[380017474,1755475871758,-2056.41191404,0.000137,2]
[380017475,1755475871768,-2056.41,0.000137,2]
[380017476,1755475871778,-4798.2944661,0.000137,2]
[380017477,1755475871788,-4798.2944661,0.000137,2]
[380017478,1755475871798,-4798.2944661,0.000137,2]
[380017479,1755475871808,-4798.2944661,0.000137,2]
[380017480,1755475871818,-4798.2944661,0.000137,2]
[380017481,1755475871828,-4798.2944661,0.000137,2]
[380017482,1755475871839,-4798.2944661,0.000137,2]
[380017483,1755475871849,-4798.2944661,0.000137,2]
[380017484,1755475871862,-4798.2944661,0.000137,2]
[380017485,1755475871873,-4798.2944661,0.000137,2]
[380017486,1755475871884,-4798.2944661,0.000137,2]
[380017487,1755475871894,-4798.2944661,0.000137,2]
[380017488,1755475871904,-4798.2944661,0.000137,2]
[380017489,1755475871914,-4798.2944661,0.000137,2]
[380017490,1755475871924,-4798.2944661,0.000137,2]
[380017491,1755475871935,-4798.2944661,0.000137,2]
[380017492,1755475871947,-4798.2944661,0.000137,2]
[380017493,1755475871959,-4798.2944661,0.000137,2]
[380017494,1755475871970,-4798.2944661,0.000137,2]
[380017495,1755475871980,-4798.29,0.000137,2]
[380017496,1755475871990,-2462.38188947,0.000137,2]
[380017497,1755475872000,-2462.38188947,0.000137,2]
[380017498,1755475872010,-2462.38188947,0.000137,2]
[380017499,1755475872019,-2462.38188947,0.000137,2]
[380017500,1755475872029,-2462.38188947,0.000137,2]
[380017501,1755475872039,-2462.38188947,0.000137,2]
[380017502,1755475872049,-2462.38188947,0.000137,2]
[380017503,1755475872059,-2462.38188947,0.000137,2]
[380017504,1755475872070,-2462.38188947,0.000137,2]
[380017505,1755475872080,-2462.38188947,0.000137,2]
[380017506,1755475872090,-2462.38188947,0.000137,2]
[380017507,1755475872100,-2462.38188947,0.000137,2]
[380017508,1755475872109,-2462.38188947,0.000137,2]
[380017509,1755475872119,-2462.38188947,0.000137,2]
[380017510,1755475872129,-2462.38188947,0.000137,2]
[380017511,1755475872139,-2462.38188947,0.000137,2]
[380017512,1755475872148,-2462.38188947,0.000137,2]
[380017513,1755475872158,-2462.38188947,0.000137,2]
[380017514,1755475872168,-2462.38188947,0.000137,2]
[380017515,1755475872178,-2462.38,0.000137,2]
[380017516,1755475872188,-5745.5577421,0.000137,2]
[380017517,1755475872198,-5745.5577421,0.000137,2]
[380017518,1755475872207,-5745.5577421,0.000137,2]
[380017519,1755475872217,-5745.5577421,0.000137,2]
[380017520,1755475872227,-5745.5577421,0.000137,2]
[380017521,1755475872237,-5745.5577421,0.000137,2]
[380017522,1755475872246,-5745.5577421,0.000137,2]
[380017523,1755475872256,-5745.5577421,0.000137,2]
[380017524,1755475872266,-5745.5577421,0.000137,2]
[380017525,1755475872276,-5745.5577421,0.000137,2]
[380017526,1755475872285,-5745.5577421,0.000137,2]
[380017527,1755475872295,-5745.5577421,0.000137,2]
[380017528,1755475872305,-5745.5577421,0.000137,2]
[380017529,1755475872314,-5745.5577421,0.000137,2]
[380017530,1755475872324,-5745.5577421,0.000137,2]
[380017531,1755475872334,-5745.5577421,0.000137,2]
[380017532,1755475872343,-5745.5577421,0.000137,2]
[380017533,1755475872352,-5745.5577421,0.000137,2]
[380017534,1755475872362,-5745.5577421,0.000137,2]
[380017535,1755475872371,-5745.55,0.000137,2]
[380017536,1755475872381,-10118.62,0.000137,2]
[380017537,1755475872390,-10118.62,0.000137,2]
[380017538,1755475872399,-322.38,0.000137,2]
[380017539,1755475872408,-322.38,0.000137,2]
[380017540,1755475872418,-322.38,0.000137,2]
[380017541,1755475872427,-322.38,0.000137,2]
[380017542,1755475872437,-3000.0,0.00013712,2]
[380017543,1755475872447,-3000.0,0.00013712,2]
[380017544,1755475872456,-300.0,0.00013739,4]
[380017545,1755475872466,-2302.376646,0.0001378,3]
[380017546,1755475872476,-156.787455,0.0001378,3]
[380017547,1755475872486,-1899.432568,0.0001378,3]
[380017548,1755475872496,-2605.004854,0.0001378,3]
[380017549,1755475872505,-1574.0,0.00013789,2]
[380017550,1755475872515,-27574.45070559,0.000138,2]
[380017551,1755475872525,-1000.0,0.000138,2]
[380017552,1755475872536,-1574.0,0.00013826,2]
[380017553,1755475872547,-880.51,0.00013828,2]
[380017554,1755475872557,-1574.0,0.00013844,2]
[380017555,1755475872567,-1574.0,0.0001386,2]
[380017556,1755475872576,-1574.0,0.00013865,2]
[380017557,1755475872587,-1574.0,0.00013869,2]
[380017558,1755475872596,-1115.4090871,0.0001387,2]
[380017559,1755475872606,-1000.0,0.0001387,2]
[380017560,1755475872618,-1000.0,0.0001387,2]
[380017561,1755475872628,-2753.41442176,0.00013872,2]
[380017562,1755475872638,-806.31130072,0.00013874,9]
[380017563,1755475872648,-17529.90066056,0.00013895,2]
[380017564,1755475872657,-1300.36649075,0.00013895,2]
[380017565,1755475872668,-49684.80501299,0.00013896,2]
[380017566,1755475872677,-456.45727036,0.00013896,2]
[380017567,1755475872687,-1000.0,0.00013899,2]
[380017568,1755475872697,-17009.78,0.000139,2]
[380017569,1755475872707,-1000.0,0.000139,2]
[380017570,1755475872716,-11926.72636538,0.00013907,2]
[380017571,1755475872726,-7043.89757508,0.00013907,2]
[380017572,1755475872736,-11926.72636538,0.00013909,2]
[380017573,1755475872746,-109280.78663335,0.00013909,2]
[380017574,1755475872756,-109280.78663335,0.00013909,2]
[380017575,1755475872765,-1300.36649075,0.00013911,2]
[380017576,1755475872775,-14087.79515013,0.00013914,2]
[380017577,1755475872785,-11926.72636538,0.0001392,2]
[380017578,1755475872795,-17529.90066056,0.0001392,2]
[380017579,1755475872804,-1300.36649075,0.00013921,2]
[380017580,1755475872814,-109280.78663335,0.00013923,2]
[380017581,1755475872823,-11926.72636538,0.00013923,2]
[380017582,1755475872833,-23973.61616337,0.00013927,2]
[380017583,1755475873938,-9314.20053868,0.00013927,2]
[380017584,1755475874293,151.0,0.00024,120]
[380017585,1755475875027,-334.77944504,0.00010683,2]
[380017586,1755475875037,-1181.254767,0.00012334,2]
[380017587,1755475875049,-151.0,0.00012334,2]
[380017588,1755475875060,-400.0,0.00013698,2]
[380017589,1755475875071,-190.198524,0.00013698,2]
[380017590,1755475875081,-1181.254767,0.00013698,2]
[380017591,1755475875092,-322.38,0.000137,2]
[380017592,1755475875102,-16396.98831094,0.00013927,2]
[380017593,1755475875112,-7043.89757508,0.00013929,2]
[380017594,1755475875123,-49684.80501299,0.00013931,2]
[380017595,1755475875134,-1300.36649075,0.00013933,2]
[380017596,1755475875146,-1574.0,0.00013934,2]
[380017597,1755475875157,-1574.0,0.00013935,2]
[380017598,1755475875168,-105345.44278854,0.00013937,2]
[380017599,1755475875254,-151.0,0.00013698,2]
[380017600,1755475875265,-374.25437052,0.00013937,2]
[380017601,1755475877425,-151.0,0.00010973,2]
[380017602,1755475877435,-257.158319,0.00012334,2]
[380017603,1755475877444,-190.198524,0.00012334,2]
[380017604,1755475877454,-346.96,0.00012877,2]
[380017605,1755475877463,-1457.59,0.00013698,2]
[380017606,1755475877473,-400.0,0.00013698,2]
[380017607,1755475877482,-428.28,0.00013698,2]
[380017608,1755475877493,-257.158319,0.00013698,2]
[380017609,1755475877504,-400.0,0.00013698,2]
[380017610,1755475877514,-400.0,0.00013698,2]
[380017611,1755475877524,-400.0,0.00013698,2]
[380017612,1755475877537,-400.0,0.00013698,2]
[380017613,1755475877547,-159.180123,0.00013698,2]
[380017614,1755475877557,-549.21,0.00013698,2]
[380017615,1755475877567,-190.198524,0.00013698,2]
[380017616,1755475877577,-2295.85,0.00013698,2]
[380017617,1755475877588,-1628.93520497,0.00013937,2]
[380017618,1755475879554,-371.0159904,0.00012185,2]
[380017619,1755475897401,-472.0,0.00010907,2]
[380017620,1755475900819,-630.0,0.00010907,2]
[380017621,1755475904870,-202.39749073,0.00010962,2]
[380017622,1755475911014,-895.57150929,0.00010962,2]
[380017623,1755475911046,-1252.7545565,0.00010986,2]
[380017624,1755475915215,-2747.2454435,0.00010986,2]
[380017625,1755475915244,-4000.0,0.0001126,2]
[380017626,1755475920206,-586.81695279,0.00011534,2]
[380017627,1755475920227,-3413.18304721,0.00011534,2]
[380017628,1755475920444,-164.0,0.00011612,2]
[380017629,1755475920455,-422.81695279,0.00011808,2]
[380017630,1755475920477,-2902.49742394,0.00011808,2]
[380017631,1755475930204,-190.198524,0.00010935,2]
[380017632,1755475946846,-408.02771974,0.00010447,2]
[380017633,1755475946877,-59.801476,0.00010935,2]
[380017634,1755475953000,245.59637552,0.00010845,2]
[380017635,1755475983390,-181.254767,0.000107,2]
[380017636,1755475983959,-724.14885748,0.000107,2]
[380017637,1755475989379,-94.59637552,0.000107,2]
[380017638,1755475989408,-2500.0,0.000107,2]
[380017639,1755475989510,-100156.2500375,0.00010845,2]
[380017640,1755475996499,-49684.80501299,0.00010845,2]
[380017641,1755476018283,-2902.49742394,0.00010845,2]
[380017642,1755476027823,-164.0,0.00010845,2]
[380017643,1755476033270,-586.81695279,0.00010845,2]
[380017644,1755476040892,-3413.18304721,0.00010845,2]
[380017645,1755476047861,-300.0,0.00010844,2]
[380017646,1755476047909,-1239.57150929,0.00010845,2]
[380017647,1755476055667,-2160.42849071,0.00010845,2]
[380017649,1755476738865,170.0,0.00011143,7]
[380017695,1755477038047,-156.40697379,0.00010699,2]
[380017696,1755477038056,-556.42370468,0.00010745,2]
[380017697,1755477038065,-234.34561153,0.00010785,2]
[380017698,1755477038076,-1200.0,0.00010789,2]
[380017699,1755477038085,-13644.4235921,0.0001079,2]
[380017700,1755477038094,-150.0,0.00010799,2]
[380017701,1755477038104,-190057.45379104,0.000108,2]
[380017702,1755477038113,-29878.51885005,0.00010845,2]
[380017703,1755477038123,-2753.41442176,0.000109,2]
[380017704,1755477038132,-384.70660006,0.000109,2]
[380017705,1755477038140,-160.97614434,0.000109,2]
[380017706,1755477038149,-500.0,0.00010973,2]
[380017707,1755477038158,-500.7012568,0.00010973,2]
[380017708,1755477038167,-500.0,0.00010973,2]
[380017709,1755477038176,-500.0,0.00010973,2]
[380017710,1755477038185,-500.0,0.00010973,2]
[380017711,1755477038194,-500.35354527,0.00010973,2]
[380017712,1755477038204,-500.0,0.00010973,2]
[380017713,1755477038213,-500.0,0.00010973,2]
[380017714,1755477038223,-503.47915224,0.00010973,2]
[380017715,1755477038233,-500.0,0.00010973,2]
[380017716,1755477038243,-4000.0,0.00010986,2]
[380017717,1755477038253,-29966.51,0.00010986,2]
[380017718,1755477038262,-1000.0,0.00010993,2]
[380017719,1755477038271,-359.0,0.00010993,2]
[380017720,1755477038282,-500.0,0.00010993,2]
[380017721,1755477038291,-500.0,0.00010993,2]
[380017722,1755477038298,-500.0,0.00010993,2]
[380017723,1755477038307,-500.0,0.00010993,2]
[380017724,1755477038319,-151.0,0.00010993,2]
[380017725,1755477038328,-500.0,0.00010993,2]
[380017726,1755477038337,-500.0,0.00010993,2]
[380017727,1755477038347,-375.60969477,0.00010993,2]
[380017728,1755477038356,-200.0,0.00010993,2]
[380017729,1755477038365,-500.0,0.00010993,2]
[380017730,1755477038374,-151.0,0.00010993,2]
[380017731,1755477038384,-1350.62248715,0.00010999,2]
[380017732,1755477038394,-1038.02,0.00010999,2]
[380017733,1755477038403,-15802.76493704,0.00011,2]
[380017734,1755477038412,-637524.26923738,0.00011,2]
[380017735,1755477038424,-901.22097856,0.00011,2]
[380017736,1755477038436,-281.171,0.00011,2]
[380017740,1755477038482,-17589.0,0.00011,2]
[380017742,1755477038493,-6423.79,0.00011,2]
[380017746,1755477038522,-13728.14726539,0.00011,2]
[380017748,1755477038532,-574.90953772,0.00011,2]
[380017780,1755477041275,-575.09046228,0.00011,2]
[380017781,1755477041287,-342.26322073,0.00011,2]
[380017782,1755477041368,-1101.66850393,0.00011,2]
[380017798,1755477043705,-564.564,0.00011,2]
[380017799,1755477043756,-35172.0,0.00011,2]
[380017800,1755477043782,-287.8547047,0.00011,2]
[380017819,1755477043933,-11749.0452,0.00011,2]
[380017898,1755477046723,-16352.63204454,0.00011,2]
[380017899,1755477046734,-1233.2800008,0.00011,2]
[380017902,1755477046827,-5440.84907081,0.00011,2]
[380017908,1755477069023,2100.0,0.0001,3]
[380017909,1755477082333,632.0,0.00024,120]
[380017910,1755477086963,-151.0,0.000101,3]
[380017911,1755477113781,-4149.0,0.000101,3]
[380017912,1755477113807,-2874.0,0.000102,3]
[380017914,1755477143370,-944.0,0.000102,3]
[380017915,1755477151748,-253.12777198,0.000102,3]
[380017916,1755477152303,-308.7545565,0.000102,3]
[380017917,1755477157653,-182.46875047,0.000102,3]
[380017918,1755477162536,-191.42081366,0.000102,3]
[380017919,1755477166794,-155.17548708,0.000102,3]
[380017921,1755477177457,-177.71031863,0.000102,3]
[380017923,1755477183914,-172.39420096,0.000102,3]
[380017924,1755477185531,-159.93510617,0.000102,3]
[380017925,1755477188830,-196.04073725,0.000102,3]
[380017926,1755477194032,-178.53,0.000102,3]
[380017927,1755477195456,-363.190239,0.000102,3]
[380017928,1755477197683,-220.23923216,0.000102,3]
[380017929,1755477199969,-123.01278614,0.000102,3]
[380017930,1755477199995,-105.92437771,0.00010225,2]
[380017931,1755477204241,-79.67562229,0.00010225,2]
[380017933,1755477252388,443.4762154,0.00013906,10]
[380017934,1755477253184,-3413.18304721,0.000103,3]
[380017935,1755477267912,-2160.42849071,0.000103,3]
[380017936,1755477320251,-2.57329199,0.00010199,2]
[380017937,1755477320288,-176.10818302,0.00010199,2]
[380017938,1755477328559,-724.14885748,0.000103,3]
[380017940,1755477341816,-97.7603954,0.000103,3]
[380017941,1755477341839,-2304.4792092,0.000103,3]
[380017945,1755477373119,-172.37694416,0.00010147,2]
[380017946,1755477380114,-16.37736477,0.00010147,2]
[380017947,1755477380213,-174.43593007,0.00010147,2]
[380017948,1755477386990,-54.84594858,0.00010199,2]
[380017949,1755477387037,-132.3619125,0.00010199,2]
[380017953,1755477416662,-150.0,0.00010246,2]
[380017954,1755477433989,1500.0,0.0002,120]
[380017955,1755477524907,1000.0,9.844e-05,2]
[380017957,1755477538986,-133.83287663,0.00010198,2]
[380017958,1755477539536,-32.33424674,0.00010198,2]
[380017959,1755477546871,-157.37161295,0.00010198,2]
[380017960,1755477546904,-62.49888201,0.00010198,2]
[380017961,1755477552498,-270.10754301,0.00010198,2]
[380017962,1755477553969,-135.44475504,0.00010198,2]
[380017963,1755477553999,-279.93409391,0.00010198,2]
[380017964,1755477554079,-169.2423021,0.00010198,2]
[380017965,1755477569224,-200.0,0.00010198,2]
[380017966,1755477572969,274.01,9.934e-05,2]
[380017967,1755477576224,-1.2168347,0.00010198,2]
[380017968,1755477576378,-148.5663306,0.00010198,2]
[380017969,1755477583941,-200.0,0.00010096,2]
[380017970,1755477590909,-66.38914574,0.00010096,2]
[380017971,1755477590968,-18.22170852,0.00010246,2]
[380017972,1755477597950,-19.20829148,0.00010246,2]
[380017973,1755477598028,-112.58341704,0.0001029,2]
[380017974,1755477605764,-65.12690159,0.0001029,2]
[380017975,1755477606106,-69.74619682,0.00010295,2]
[380017977,1755477612589,-151.0,0.00010295,2]
[380017978,1755477620476,-29.25380318,0.00010295,2]
[380017979,1755477620587,-92.49239364,0.000103,2]
[380017980,1755477628281,-85.35760636,0.000103,2]
[380017981,1755477629440,-29.28478728,0.00010399,2]
[380017982,1755477636167,-151.0,0.00010398,2]
[380017983,1755477642858,-2.90934648,0.00010398,2]
[380017984,1755477643383,-145.18130704,0.00010399,2]
[380017985,1755477651526,-200.0,0.00010399,2]
[380017986,1755477657317,-151.0,0.00010399,2]
[380017987,1755477665256,-205.99877959,0.00010002,2]
[380017988,1755477673293,-200.0,0.00010002,2]
[380017989,1755477678570,-288.44075385,0.00010002,2]
[380017990,1755477678612,170.0,0.00010002,7]
[380017991,1755477679197,-151.0,0.00010002,2]
[380017992,1755477680907,-154.56046656,0.00010002,2]
[380017993,1755477701043,-200.0,0.00010398,2]
[380017995,1755477708117,-12.0,0.00010398,2]
[380017996,1755477708286,-127.0,0.00010398,2]
[380017997,1755477715014,-151.0,0.00010398,2]
[380017998,1755477722852,-10.44075385,0.00010398,2]
[380017999,1755477723050,-179.1184923,0.00010399,2]
[380018000,1755477729946,-151.0,0.00010399,2]
[380018001,1755477738231,-200.0,0.00010399,2]
[380018002,1755477745660,-151.0,0.00010399,2]
[380018003,1755477754686,-200.0,0.00010399,2]
[380018004,1755477763735,-151.0,0.00010399,2]
[380018005,1755477771213,-32.1184923,0.00010399,2]
[380018006,1755477771320,-135.7630154,0.00010399,2]
[380018007,1755477778184,-151.0,0.00010399,2]
[380018008,1755477786325,-200.0,0.00010398,2]
[380018009,1755477796869,-51.0,0.00010398,2]
[380018010,1755477797952,-49.0,0.00010398,2]
[380018011,1755477802741,-248.71531821,0.00010399,2]
[380018013,1755477809493,-200.0,0.00010399,2]
[380018014,1755477818851,-74.28468179,0.00010399,2]
[380018015,1755477820007,-2.43063642,0.00010399,2]
[380018016,1755477825075,-200.0,0.00010399,2]
[380018017,1755477835053,-53.43063642,0.00010399,2]
[380018018,1755477835094,-44.13872716,0.00010399,2]
[380018019,1755477842668,-200.0,0.000104,3]
[380018020,1755477853149,-151.0,0.000104,3]
[380018021,1755477858644,-151.0,0.000104,3]
[380018022,1755477866492,-200.0,0.000104,3]
[380018023,1755477876672,-1000.0,0.000104,3]
[380018024,1755477883343,-151.0,0.000104,3]
[380018025,1755477891467,-200.0,0.000104,3]
[380018026,1755477897869,-1000.0,0.000104,3]
[380018027,1755477905551,-151.0,0.000104,3]
[380018028,1755477908026,150.0,9.888e-05,2]
[380018029,1755477912549,-200.0,0.000104,3]
[380018030,1755477912764,150.0,9.888e-05,2]
[380018031,1755477914259,150.0,9.888e-05,2]
[380018032,1755477914418,150.0,9.888e-05,2]
[380018033,1755477914633,150.0,9.888e-05,2]
[380018034,1755477921246,-1000.0,0.000104,3]
[380018035,1755477922895,150.0,9.888e-05,2]
[380018036,1755477923155,150.0,9.888e-05,2]
[380018037,1755477927781,150.0,9.888e-05,2]
[380018038,1755477930337,150.0,9.888e-05,2]
[380018039,1755477947722,-1.0,0.00010254,2]
[380018040,1755477947747,-149.0,0.00010254,2]
[380018041,1755477955242,-50.0,0.00010254,2]
[380018042,1755477955526,-100.0,0.00010254,2]
[380018043,1755477964675,-334.77944504,0.00010399,2]
[380018045,1755478051104,800.0,0.0001,3]
[380018047,1755478137499,-246.15013863,0.000101,3]
[380018048,1755478142420,-180.30222094,0.00010022,2]
[380018049,1755478144281,-156.01492134,0.00010022,2]
[380018050,1755478150288,-955.60717586,0.000101,3]
[380018055,1755478151367,711.93,9.947e-05,2]
[380018056,1755478154208,-194.87817952,0.00010022,2]
[380018057,1755478157279,-273.11536715,0.00010022,2]
[380018058,1755478157968,-192.80032192,0.000101,3]
[380018059,1755478161410,-167.28302389,0.00010022,2]
[380018060,1755478165807,-208.45992187,0.00010022,2]
[380018061,1755478165896,-150.29475011,0.000101,3]
[380018062,1755478169505,-160.47693667,0.00010022,2]
[380018063,1755478171680,-299.9614797,0.00010022,2]
[380018064,1755478172302,-155.14761348,0.000101,3]
[380018065,1755478172495,-2290.13479183,0.000102,3]
[380018066,1755478174538,-170.00142975,0.00010022,2]
[380018067,1755478177511,-196.77262903,0.00010022,2]
[380018068,1755478179263,-219.95489421,0.00010022,2]
[380018069,1755478179341,-150.0,0.00010022,2]
[380018070,1755478182167,-153.09856923,0.00010022,2]
[380018071,1755478184867,-175.6263796,0.00010022,2]
[380018072,1755478195478,-194.31155221,0.00010022,2]
[380018073,1755478198283,-190.82404836,0.00010022,2]
[380018075,1755478205147,-328.59556724,0.00010022,2]
[380018076,1755478209824,-193.37540226,0.00010022,2]
[380018077,1755478211969,-228.0290305,0.00010022,2]
[380018078,1755478217778,-331.42739442,0.00010022,2]
[380018079,1755478220647,-215.14091937,0.00010022,2]
[380018080,1755478222158,-357.40925513,0.00010022,2]
[380018081,1755478224478,-258.65306726,0.00010022,2]
[380018082,1755478226940,-172.09176669,0.00010022,2]
[380018083,1755478227743,-195.94702973,0.00010022,2]
[380018084,1755478229325,-182.60217982,0.00010022,2]
[380018089,1755478231727,-234.57931495,0.00010022,2]
[380018139,1755478232182,-1268.91751916,0.00010022,2]
[380018141,1755478232191,-202.02757417,0.000101,2]
[380018143,1755478232201,-309.86520817,0.000102,3]
[380018146,1755478232210,-202.02757417,0.000102,2]
[380018147,1755478232220,-1200.0,0.00010299,2]
[380018149,1755478232229,-2017.42134664,0.000103,3]
[380018160,1755478232428,-1482.57865336,0.000103,3]
[380018161,1755478232438,-500.0,0.00010398,2]
[380018162,1755478232447,-155.99547239,0.00010398,2]
[380018163,1755478232457,-624.00846801,0.00010398,2]
[380018164,1755478232466,-160.47693667,0.00010398,2]
[380018165,1755478232475,-500.0,0.00010398,2]
[380018166,1755478232485,-230.93841553,0.00010398,2]
[380018167,1755478232494,-500.0,0.00010398,2]
[380018168,1755478232503,-215.0175651,0.00010398,2]
[380018169,1755478232512,-290.25638488,0.00010398,2]
[380018170,1755478232522,-250.0,0.00010399,2]
[380018171,1755478232531,-282.0,0.00010399,2]
[380018172,1755478232540,-665.58872095,0.000104,3]
[380018173,1755478232575,-3734.41127905,0.000104,3]
[380018174,1755478232585,-150.0,0.00010437,2]
[380018175,1755478232594,-150.0,0.00010437,2]
[380018176,1755478232604,-150.0,0.00010437,2]
[380018177,1755478232614,-800.0,0.000105,3]
[380018178,1755478232624,-800.0,0.000106,3]
[380018179,1755478232635,-150.0,0.0001062,2]
[380018180,1755478232645,-150.0,0.0001062,2]
[380018181,1755478232655,-34548.3945,0.000107,2]
[380018182,1755478232666,-800.0,0.000107,3]
[380018183,1755478232678,-1354.0,0.00010704,2]
[380018184,1755478232698,-1129.1499723,0.00010799,2]
[380018185,1755478232712,-150.0,0.00010799,2]
[380018186,1755478232730,-1000.0,0.000108,2]
[380018187,1755478232753,-172.9051,0.000108,2]
[380018188,1755478232766,-2500.0,0.000108,2]
[380018189,1755478232776,-2670.9574,0.000108,2]
[380018190,1755478232786,-800.0,0.000108,3]
[380018191,1755478232796,-230.9029,0.000108,2]
[380018192,1755478232806,-563.5590576,0.00010873,2]
[380018193,1755478232816,-19392.03196499,0.000109,2]